[Event "*** Titled Tuesday Blitz"]
[Site "Chess.com"]
[Date "2021.04.27"]
[Round "5"]
[White "Nozdrachev_Vladislav"]
[Black "ehrenfeld"]
[Result "1-0"]
[WhiteElo "2714"]
[BlackElo "2524"]
[TimeControl "180+1"]
[EndTime "10:56:56 PDT"]
[Termination "Nozdrachev_Vladislav won on time"]

1. e4 {[%clk 0:03:00.9]} 1... e5 {[%clk 0:02:59.3]} 2. Nf3 {[%clk 0:03:00.3]}
2... Nc6 {[%clk 0:02:59.2]} 3. Bc4 {[%clk 0:02:59.7]} 3... Nf6 {[%clk
0:02:58.7]} 4. d3 {[%clk 0:02:59.3]} 4... Bc5 {[%clk 0:02:58.5]} 5. O-O {[%clk
0:02:59]} 5... d6 {[%clk 0:02:58.6]} 6. c3 {[%clk 0:02:59]} 6... a6 {[%clk
0:02:58.5]} 7. a4 {[%clk 0:02:57.5]} 7... Ba7 {[%clk 0:02:58]} 8. Nbd2 {[%clk
0:02:57.1]} 8... h6 {[%clk 0:02:57]} 9. Re1 {[%clk 0:02:54.6]} 9... O-O {[%clk
0:02:50.2]} 10. Nf1 {[%clk 0:02:52.3]} 10... Ne7 {[%clk 0:02:49.7]} 11. Ng3
{[%clk 0:02:49.7]} 11... Ng6 {[%clk 0:02:49.1]} 12. h3 {[%clk 0:02:45]} 12... c6
{[%clk 0:02:48.3]} 13. Bb3 {[%clk 0:02:44.2]} 13... Re8 {[%clk 0:02:43.8]} 14.
d4 {[%clk 0:02:44]} 14... a5 {[%clk 0:02:15.6]} 15. Bc2 {[%clk 0:02:38.2]} 15...
Be6 {[%clk 0:02:10.5]} 16. Be3 {[%clk 0:02:37.4]} 16... Qc7 {[%clk 0:02:09.8]}
17. Qd2 {[%clk 0:02:35.8]} 17... Kh7 {[%clk 0:02:02.1]} 18. b3 {[%clk
0:02:35.1]} 18... Rad8 {[%clk 0:02:00.2]} 19. c4 {[%clk 0:02:35]} 19... Bc8
{[%clk 0:01:51.8]} 20. Qc3 {[%clk 0:02:29.2]} 20... exd4 {[%clk 0:01:35.5]} 21.
Nxd4 {[%clk 0:02:26.7]} 21... Kg8 {[%clk 0:01:33.5]} 22. Ndf5 {[%clk 0:01:56.7]}
22... Bxe3 {[%clk 0:01:31.8]} 23. Rxe3 {[%clk 0:01:57.6]} 23... Bxf5 {[%clk
0:01:30]} 24. Nxf5 {[%clk 0:01:55.9]} 24... Re6 {[%clk 0:01:18.5]} 25. Rd1
{[%clk 0:01:52.7]} 25... Rde8 {[%clk 0:01:17.1]} 26. Rg3 {[%clk 0:01:51.2]}
26... Qb6 {[%clk 0:01:11.9]} 27. Nxd6 {[%clk 0:01:45.5]} 27... Rd8 {[%clk
0:01:01.1]} 28. c5 {[%clk 0:01:42.3]} 28... Qb4 {[%clk 0:00:59.8]} 29. Qxb4
{[%clk 0:01:36.1]} 29... axb4 {[%clk 0:00:59.9]} 30. Nxb7 {[%clk 0:00:57.7]}
30... Rxd1+ {[%clk 0:00:58.1]} 31. Bxd1 {[%clk 0:00:58.6]} 31... Rxe4 {[%clk
0:00:53.2]} 32. Rd3 {[%clk 0:00:48.1]} 32... Re1+ {[%clk 0:00:39.2]} 33. Kh2
{[%clk 0:00:47.7]} 33... Nd5 {[%clk 0:00:34.2]} 34. a5 {[%clk 0:00:42.8]} 34...
Ne5 {[%clk 0:00:32.9]} 35. Rd2 {[%clk 0:00:41.9]} 35... Nc3 {[%clk 0:00:31.6]}
36. a6 {[%clk 0:00:35.1]} 36... Nb5 {[%clk 0:00:28.5]} 37. f4 {[%clk 0:00:32.1]}
37... Ng6 {[%clk 0:00:21.7]} 38. Bf3 {[%clk 0:00:29.5]} 38... Ne7 {[%clk
0:00:19.4]} 39. Na5 {[%clk 0:00:27.1]} 39... Ra1 {[%clk 0:00:17.3]} 40. Nxc6
{[%clk 0:00:26.5]} 40... Nxc6 {[%clk 0:00:13.8]} 41. Bxc6 {[%clk 0:00:27.4]}
41... Nc3 {[%clk 0:00:09.7]} 42. Bb7 {[%clk 0:00:20.7]} 42... Ra3 {[%clk
0:00:06.4]} 43. c6 {[%clk 0:00:20.1]} 43... Nb5 {[%clk 0:00:06.5]} 44. Rd7
{[%clk 0:00:17.8]} 44... Rxb3 {[%clk 0:00:05]} 45. c7 {[%clk 0:00:17.4]} 45...
Nxc7 {[%clk 0:00:04]} 46. Rxc7 {[%clk 0:00:18.3]} 46... Ra3 {[%clk 0:00:04.4]}
47. Rc4 {[%clk 0:00:18]} 47... b3 {[%clk 0:00:04.3]} 48. Rb4 {[%clk 0:00:18.3]}
48... g6 {[%clk 0:00:04.3]} 49. h4 {[%clk 0:00:18]} 49... h5 {[%clk 0:00:04.2]}
50. g3 {[%clk 0:00:18.1]} 50... Kg7 {[%clk 0:00:04.3]} 51. Kh3 {[%clk
0:00:18.2]} 51... Kf6 {[%clk 0:00:03.8]} 52. Rxb3 {[%clk 0:00:16.7]} 52... Rxb3
{[%clk 0:00:03.1]} 53. a7 {[%clk 0:00:17.1]} 53... Rxb7 {[%clk 0:00:01.7]} 54.
a8=Q {[%clk 0:00:17.1]} 1-0

[Event "*** Titled Tuesday Blitz"]
[Site "Chess.com"]
[Date "2021.04.27"]
[Round "5"]
[White "Rodchenkov_Vitalij"]
[Black "IsuruAlahakoon"]
[Result "1-0"]
[WhiteElo "2059"]
[BlackElo "2194"]
[TimeControl "180+1"]
[EndTime "10:56:57 PDT"]
[Termination "Rodchenkov_Vitalij won on time"]

1. Nf3 {[%clk 0:03:00.9]} 1... d5 {[%clk 0:02:59.7]} 2. d4 {[%clk 0:03:00.4]}
2... Bf5 {[%clk 0:02:56.9]} 3. Bf4 {[%clk 0:02:57.3]} 3... e6 {[%clk 0:02:49.7]}
4. c4 {[%clk 0:02:57.3]} 4... Nc6 {[%clk 0:02:47.2]} 5. e3 {[%clk 0:02:55.8]}
5... Bd6 {[%clk 0:02:43]} 6. Bxd6 {[%clk 0:02:49.5]} 6... Qxd6 {[%clk
0:02:43.9]} 7. cxd5 {[%clk 0:02:48.4]} 7... exd5 {[%clk 0:02:43]} 8. Nc3 {[%clk
0:02:47.8]} 8... Nf6 {[%clk 0:02:39.8]} 9. Bb5 {[%clk 0:02:29.9]} 9... O-O
{[%clk 0:02:38]} 10. O-O {[%clk 0:02:24.7]} 10... Ne7 {[%clk 0:02:34.5]} 11. Bd3
{[%clk 0:02:10.8]} 11... Bg4 {[%clk 0:02:28.7]} 12. h3 {[%clk 0:02:06]} 12...
Bh5 {[%clk 0:02:28]} 13. Be2 {[%clk 0:02:00.7]} 13... c6 {[%clk 0:02:20.9]} 14.
Rc1 {[%clk 0:01:58.8]} 14... Rfe8 {[%clk 0:02:13.8]} 15. Re1 {[%clk 0:01:53.2]}
15... Bxf3 {[%clk 0:02:11.9]} 16. Bxf3 {[%clk 0:01:51.9]} 16... Ng6 {[%clk
0:02:11.8]} 17. a3 {[%clk 0:01:45.7]} 17... a5 {[%clk 0:02:04.8]} 18. Qb3 {[%clk
0:01:38.8]} 18... Re7 {[%clk 0:02:00.7]} 19. Na4 {[%clk 0:01:32.9]} 19... Nh4
{[%clk 0:01:54.6]} 20. Be2 {[%clk 0:01:28]} 20... Ne4 {[%clk 0:01:52.7]} 21. Bf1
{[%clk 0:01:22.4]} 21... Qg6 {[%clk 0:01:49.2]} 22. Qd1 {[%clk 0:01:09]} 22...
Re6 {[%clk 0:01:34]} 23. Nc5 {[%clk 0:01:04.6]} 23... Rf6 {[%clk 0:01:27.4]} 24.
Nxe4 {[%clk 0:01:01.4]} 24... dxe4 {[%clk 0:01:26.5]} 25. Qg4 {[%clk 0:00:58.6]}
25... Qxg4 {[%clk 0:01:19.3]} 26. hxg4 {[%clk 0:00:57.3]} 26... Rg6 {[%clk
0:01:19.8]} 27. Be2 {[%clk 0:00:51.2]} 27... a4 {[%clk 0:01:12.4]} 28. Rc5
{[%clk 0:00:47.7]} 28... Re6 {[%clk 0:00:53.7]} 29. Rh5 {[%clk 0:00:40.4]} 29...
Ng6 {[%clk 0:00:50.9]} 30. Rc1 {[%clk 0:00:40.6]} 30... Ne7 {[%clk 0:00:44.7]}
31. Bc4 {[%clk 0:00:38.7]} 31... Rg6 {[%clk 0:00:35.4]} 32. f3 {[%clk
0:00:38.3]} 32... exf3 {[%clk 0:00:33.4]} 33. gxf3 {[%clk 0:00:39.2]} 33... Rd8
{[%clk 0:00:27.4]} 34. Kf2 {[%clk 0:00:38.7]} 34... h6 {[%clk 0:00:25.7]} 35.
Re5 {[%clk 0:00:36.4]} 35... Kf8 {[%clk 0:00:23.1]} 36. Ba2 {[%clk 0:00:31.4]}
36... Rf6 {[%clk 0:00:20.5]} 37. Ra5 {[%clk 0:00:30.8]} 37... Ng6 {[%clk
0:00:19.1]} 38. Rxa4 {[%clk 0:00:30]} 38... Nh4 {[%clk 0:00:18.7]} 39. f4 {[%clk
0:00:28]} 39... g5 {[%clk 0:00:18]} 40. f5 {[%clk 0:00:27.7]} 40... Rfd6 {[%clk
0:00:14.8]} 41. Rd1 {[%clk 0:00:27.6]} 41... Kg7 {[%clk 0:00:12.1]} 42. Rb4
{[%clk 0:00:26.1]} 42... b5 {[%clk 0:00:10.4]} 43. a4 {[%clk 0:00:26.7]} 43...
bxa4 {[%clk 0:00:07.9]} 44. Rxa4 {[%clk 0:00:27.6]} 44... c5 {[%clk 0:00:08.2]}
45. Rc4 {[%clk 0:00:24.2]} 45... cxd4 {[%clk 0:00:07]} 46. Rcxd4 {[%clk
0:00:25.1]} 46... Rxd4 {[%clk 0:00:06.5]} 47. Rxd4 {[%clk 0:00:26]} 47... Rxd4
{[%clk 0:00:06.6]} 48. exd4 {[%clk 0:00:26.9]} 48... Kf6 {[%clk 0:00:07]} 49.
Ke3 {[%clk 0:00:26.1]} 49... Ke7 {[%clk 0:00:06.4]} 50. Bc4 {[%clk 0:00:24.6]}
50... Kd6 {[%clk 0:00:05.8]} 51. Bf1 {[%clk 0:00:24.6]} 51... h5 {[%clk
0:00:03]} 52. gxh5 {[%clk 0:00:23.5]} 52... Nxf5+ {[%clk 0:00:02.7]} 53. Kd3
{[%clk 0:00:22.7]} 53... Ng3 {[%clk 0:00:01.6]} 54. Be2 {[%clk 0:00:22.2]} 1-0

[Event "*** Titled Tuesday Blitz"]
[Site "Chess.com"]
[Date "2021.04.27"]
[Round "5"]
[White "UmbertoConcelli"]
[Black "elextranjero00"]
[Result "0-1"]
[WhiteElo "2800"]
[BlackElo "2583"]
[TimeControl "180+1"]
[EndTime "10:56:58 PDT"]
[Termination "elextranjero00 won by checkmate"]

1. d4 {[%clk 0:03:00.9]} 1... Nf6 {[%clk 0:02:56.6]} 2. c4 {[%clk 0:02:57.9]}
2... e6 {[%clk 0:02:47.1]} 3. Nf3 {[%clk 0:02:55.8]} 3... c5 {[%clk 0:02:47]} 4.
d5 {[%clk 0:02:55.3]} 4... exd5 {[%clk 0:02:46.7]} 5. cxd5 {[%clk 0:02:56.2]}
5... d6 {[%clk 0:02:47.3]} 6. Nc3 {[%clk 0:02:55.9]} 6... g6 {[%clk 0:02:47.5]}
7. Nd2 {[%clk 0:02:50.9]} 7... Bg7 {[%clk 0:02:44.6]} 8. e4 {[%clk 0:02:50.8]}
8... O-O {[%clk 0:02:44.1]} 9. Be2 {[%clk 0:02:50.9]} 9... Re8 {[%clk
0:02:36.2]} 10. O-O {[%clk 0:02:49.4]} 10... Na6 {[%clk 0:02:36]} 11. Re1 {[%clk
0:02:43.2]} 11... Nc7 {[%clk 0:02:35.7]} 12. Bf1 {[%clk 0:02:37.6]} 12... Rb8
{[%clk 0:02:25]} 13. a4 {[%clk 0:02:35.9]} 13... b6 {[%clk 0:02:25.1]} 14. h3
{[%clk 0:02:23.7]} 14... a6 {[%clk 0:02:06.2]} 15. Nc4 {[%clk 0:02:20]} 15... b5
{[%clk 0:02:05.9]} 16. Na5 {[%clk 0:02:15.5]} 16... Bd7 {[%clk 0:02:05.2]} 17.
axb5 {[%clk 0:02:13.7]} 17... Nxb5 {[%clk 0:01:55.7]} 18. Bxb5 {[%clk
0:02:11.5]} 18... axb5 {[%clk 0:01:55.6]} 19. Nc6 {[%clk 0:02:02.4]} 19... Bxc6
{[%clk 0:01:54.7]} 20. dxc6 {[%clk 0:02:03.3]} 20... Qc7 {[%clk 0:01:39.8]} 21.
Ra6 {[%clk 0:01:59.6]} 21... Qc8 {[%clk 0:01:40]} 22. Ra7 {[%clk 0:01:49.5]}
22... Qxc6 {[%clk 0:01:39.9]} 23. Qf3 {[%clk 0:01:49.3]} 23... Rb7 {[%clk
0:01:37.5]} 24. Rxb7 {[%clk 0:01:41.2]} 24... Qxb7 {[%clk 0:01:37.2]} 25. Bg5
{[%clk 0:01:42.1]} 25... Nd7 {[%clk 0:01:18.4]} 26. Nd5 {[%clk 0:01:41.1]} 26...
h6 {[%clk 0:00:46.6]} 27. Bc1 {[%clk 0:01:38.9]} 27... Qxd5 {[%clk 0:00:37.9]}
28. exd5 {[%clk 0:01:15.4]} 28... Rxe1+ {[%clk 0:00:37.6]} 29. Kh2 {[%clk
0:01:16.3]} 29... Rxc1 {[%clk 0:00:37.7]} 30. Qe3 {[%clk 0:01:17.2]} 30... Rc4
{[%clk 0:00:31.6]} 31. Qe7 {[%clk 0:01:15.6]} 31... Be5+ {[%clk 0:00:29.8]} 32.
g3 {[%clk 0:01:15.3]} 32... Nf8 {[%clk 0:00:26]} 33. f4 {[%clk 0:01:15.2]} 33...
Rc2+ {[%clk 0:00:25.4]} 34. Kh1 {[%clk 0:01:15.1]} 34... Bxb2 {[%clk 0:00:23]}
35. Qxd6 {[%clk 0:01:15]} 35... Bd4 {[%clk 0:00:20.1]} 36. Qb8 {[%clk
0:01:08.1]} 36... b4 {[%clk 0:00:20.1]} 37. d6 {[%clk 0:01:08.4]} 37... Kg7
{[%clk 0:00:20.4]} 38. Qb7 {[%clk 0:01:06.1]} 38... c4 {[%clk 0:00:15.8]} 39.
Qxb4 {[%clk 0:01:03.5]} 39... Bf6 {[%clk 0:00:13.4]} 40. Qa4 {[%clk 0:01:02.4]}
40... Rc1+ {[%clk 0:00:12.2]} 41. Kg2 {[%clk 0:01:02.7]} 41... c3 {[%clk
0:00:11.9]} 42. d7 {[%clk 0:01:02.9]} 42... Rb1 {[%clk 0:00:08.1]} 43. Qc6
{[%clk 0:00:50.6]} 43... Rb2+ {[%clk 0:00:08.1]} 44. Kf3 {[%clk 0:00:50.1]}
44... Rd2 {[%clk 0:00:09]} 45. f5 {[%clk 0:00:42.3]} 45... Rxd7 {[%clk
0:00:08.4]} 46. fxg6 {[%clk 0:00:43.2]} 46... fxg6 {[%clk 0:00:08.9]} 47. h4
{[%clk 0:00:42.7]} 47... Rf7 {[%clk 0:00:08.9]} 48. Ke4 {[%clk 0:00:42.4]} 48...
h5 {[%clk 0:00:09.3]} 49. Qc8 {[%clk 0:00:40.5]} 49... Re7+ {[%clk 0:00:09.5]}
50. Kf3 {[%clk 0:00:40.7]} 50... Re6 {[%clk 0:00:09.3]} 51. Qc7+ {[%clk
0:00:39.9]} 51... Re7 {[%clk 0:00:09.7]} 52. Qc4 {[%clk 0:00:40.8]} 52... Ne6
{[%clk 0:00:09.4]} 53. Kg2 {[%clk 0:00:40.3]} 53... Kf7 {[%clk 0:00:06.9]} 54.
Qb3 {[%clk 0:00:34.4]} 54... Rc7 {[%clk 0:00:07]} 55. Qc2 {[%clk 0:00:34.4]}
55... Nd4 {[%clk 0:00:07.1]} 56. Qa2+ {[%clk 0:00:34.3]} 56... Kg7 {[%clk
0:00:06.5]} 57. Qa5 {[%clk 0:00:35.2]} 57... Ne6 {[%clk 0:00:04.1]} 58. Qa1
{[%clk 0:00:30.6]} 58... c2 {[%clk 0:00:03.8]} 59. Qc1 {[%clk 0:00:31]} 59...
Bb2 {[%clk 0:00:04]} 60. Kf2 {[%clk 0:00:31.9]} 60... Bxc1 {[%clk 0:00:03.7]}
61. Ke2 {[%clk 0:00:32.8]} 61... Bf4 {[%clk 0:00:03.6]} 62. Kd3 {[%clk
0:00:33.7]} 62... c1=Q {[%clk 0:00:04.1]} 63. Ke4 {[%clk 0:00:34.6]} 63... Qc3
{[%clk 0:00:04.6]} 64. Kd5 {[%clk 0:00:35.5]} 64... Qc4# {[%clk 0:00:05.2]} 0-1

[Event "*** Titled Tuesday Blitz"]
[Site "Chess.com"]
[Date "2021.04.27"]
[Round "5"]
[White "GM_dmitrij"]
[Black "dretch"]
[Result "0-1"]
[WhiteElo "2951"]
[BlackElo "2822"]
[TimeControl "180+1"]
[EndTime "10:56:59 PDT"]
[Termination "dretch won by checkmate"]

1. e4 {[%clk 0:03:00.9]} 1... e6 {[%clk 0:02:57.9]} 2. d4 {[%clk 0:03:00.5]}
2... d5 {[%clk 0:02:58.1]} 3. exd5 {[%clk 0:02:59.4]} 3... exd5 {[%clk
0:02:58.2]} 4. Nf3 {[%clk 0:03:00.3]} 4... Bd6 {[%clk 0:02:57.6]} 5. c4 {[%clk
0:02:59.6]} 5... dxc4 {[%clk 0:02:52.8]} 6. Bxc4 {[%clk 0:03:00.5]} 6... Nf6
{[%clk 0:02:53]} 7. Qe2+ {[%clk 0:02:59.5]} 7... Be7 {[%clk 0:02:51.9]} 8. O-O
{[%clk 0:02:58.9]} 8... O-O {[%clk 0:02:51.6]} 9. Re1 {[%clk 0:02:59]} 9... Nc6
{[%clk 0:02:47.1]} 10. h3 {[%clk 0:02:51.8]} 10... Nd5 {[%clk 0:02:32.9]} 11.
Nc3 {[%clk 0:02:47.9]} 11... Be6 {[%clk 0:02:29.7]} 12. Bd2 {[%clk 0:02:35.2]}
12... Re8 {[%clk 0:02:20.1]} 13. Bd3 {[%clk 0:02:14]} 13... Bf6 {[%clk
0:02:09.1]} 14. Qe4 {[%clk 0:01:55.7]} 14... g6 {[%clk 0:02:07]} 15. Rad1 {[%clk
0:01:49.1]} 15... Ncb4 {[%clk 0:01:14]} 16. Bb1 {[%clk 0:01:29]} 16... Bd7
{[%clk 0:01:07.2]} 17. Ne5 {[%clk 0:01:24.9]} 17... Bf5 {[%clk 0:01:06.4]} 18.
Qf3 {[%clk 0:01:19.5]} 18... Bxb1 {[%clk 0:01:03.5]} 19. Rxb1 {[%clk 0:01:20]}
19... c6 {[%clk 0:00:49.6]} 20. Ne4 {[%clk 0:01:16.4]} 20... Nc2 {[%clk
0:00:42]} 21. Ng4 {[%clk 0:00:26]} 21... Bg7 {[%clk 0:00:37.9]} 22. Bg5 {[%clk
0:00:22.3]} 22... Nxe1 {[%clk 0:00:32]} 23. Rxe1 {[%clk 0:00:23.2]} 23... Rxe4
{[%clk 0:00:27]} 24. Bxd8 {[%clk 0:00:23]} 24... Rxe1+ {[%clk 0:00:25.7]} 25.
Kh2 {[%clk 0:00:23.9]} 25... Rxd8 {[%clk 0:00:25.4]} 26. Qa3 {[%clk 0:00:23.4]}
26... h5 {[%clk 0:00:16.9]} 27. Ne5 {[%clk 0:00:18.8]} 27... Bxe5+ {[%clk
0:00:16.4]} 28. dxe5 {[%clk 0:00:19.7]} 28... Rxe5 {[%clk 0:00:16.6]} 29. Qxa7
{[%clk 0:00:19.8]} 29... Re7 {[%clk 0:00:16.5]} 30. a4 {[%clk 0:00:19.2]} 30...
Red7 {[%clk 0:00:16.6]} 31. a5 {[%clk 0:00:18.9]} 31... Ne7 {[%clk 0:00:15.8]}
32. Qc5 {[%clk 0:00:17.9]} 32... Nf5 {[%clk 0:00:15.9]} 33. b4 {[%clk
0:00:18.1]} 33... Rd5 {[%clk 0:00:15.9]} 34. Qb6 {[%clk 0:00:17.3]} 34... R8d7
{[%clk 0:00:16]} 35. a6 {[%clk 0:00:17.7]} 35... bxa6 {[%clk 0:00:16.5]} 36.
Qxc6 {[%clk 0:00:18.2]} 36... R5d6 {[%clk 0:00:16.8]} 37. Qc5 {[%clk 0:00:18.3]}
37... Kg7 {[%clk 0:00:16.7]} 38. Qe5+ {[%clk 0:00:18.6]} 38... Kh7 {[%clk
0:00:16.4]} 39. Qa5 {[%clk 0:00:19.5]} 39... Re6 {[%clk 0:00:15.8]} 40. Qa2
{[%clk 0:00:14.4]} 40... Rde7 {[%clk 0:00:15.8]} 41. g4 {[%clk 0:00:13]} 41...
hxg4 {[%clk 0:00:15.7]} 42. hxg4 {[%clk 0:00:13.9]} 42... Nh6 {[%clk 0:00:16.4]}
43. Kg3 {[%clk 0:00:12.4]} 43... Re4 {[%clk 0:00:15.8]} 44. f3 {[%clk
0:00:12.1]} 44... R4e6 {[%clk 0:00:15.9]} 45. Qh2 {[%clk 0:00:10.5]} 45... Kg7
{[%clk 0:00:15.8]} 46. Qb2+ {[%clk 0:00:11]} 46... f6 {[%clk 0:00:15]} 47. b5
{[%clk 0:00:09.2]} 47... axb5 {[%clk 0:00:14.2]} 48. Qxb5 {[%clk 0:00:10.1]}
48... Nf7 {[%clk 0:00:14.4]} 49. Qc5 {[%clk 0:00:10.2]} 49... g5 {[%clk
0:00:14.7]} 50. Qd5 {[%clk 0:00:09.5]} 50... Ne5 {[%clk 0:00:14.9]} 51. Kf2
{[%clk 0:00:08.4]} 51... Ng6 {[%clk 0:00:15]} 52. Kg3 {[%clk 0:00:06.9]} 52...
Nf4 {[%clk 0:00:15.4]} 53. Qf5 {[%clk 0:00:06.8]} 53... Ng6 {[%clk 0:00:15.6]}
54. Qa5 {[%clk 0:00:06.5]} 54... Re2 {[%clk 0:00:15.6]} 55. Qf5 {[%clk
0:00:04.5]} 55... Rg2+ {[%clk 0:00:14.1]} 56. Kh3 {[%clk 0:00:04.1]} 56... Nf4+
{[%clk 0:00:14.1]} 57. Qxf4 {[%clk 0:00:04]} 57... gxf4 {[%clk 0:00:15]} 58. Kh4
{[%clk 0:00:04.2]} 58... Rh2# {[%clk 0:00:14.5]} 0-1

[Event "*** Titled Tuesday Blitz"]
[Site "Chess.com"]
[Date "2021.04.27"]
[Round "5"]
[White "SergeyShtyka"]
[Black "Cptn2"]
[Result "0-1"]
[WhiteElo "2414"]
[BlackElo "2585"]
[TimeControl "180+1"]
[EndTime "10:57:01 PDT"]
[Termination "Cptn2 won by checkmate"]

1. e4 {[%clk 0:02:58.5]} 1... c5 {[%clk 0:02:13.8]} 2. Nf3 {[%clk 0:02:57.3]}
2... Nf6 {[%clk 0:02:09.7]} 3. Nc3 {[%clk 0:02:56.9]} 3... d5 {[%clk 0:02:08.5]}
4. exd5 {[%clk 0:02:55.4]} 4... Nxd5 {[%clk 0:02:06.9]} 5. Bb5+ {[%clk
0:02:55.2]} 5... Nc6 {[%clk 0:02:03.3]} 6. Bxc6+ {[%clk 0:02:51.8]} 6... bxc6
{[%clk 0:02:01.8]} 7. O-O {[%clk 0:02:50.8]} 7... g6 {[%clk 0:01:57.8]} 8. h3
{[%clk 0:02:38.2]} 8... Bg7 {[%clk 0:01:57.3]} 9. Qe2 {[%clk 0:02:38.2]} 9...
O-O {[%clk 0:01:52]} 10. Qc4 {[%clk 0:02:35.7]} 10... Nb4 {[%clk 0:01:48.5]} 11.
Qxc5 {[%clk 0:01:59.7]} 11... Nxc2 {[%clk 0:01:46.8]} 12. Rb1 {[%clk 0:02:00]}
12... Ba6 {[%clk 0:01:41.4]} 13. Rd1 {[%clk 0:01:46.8]} 13... Bd3 {[%clk
0:01:37.1]} 14. Qxc6 {[%clk 0:01:33.9]} 14... Nb4 {[%clk 0:01:31.6]} 15. Qa4
{[%clk 0:01:18.6]} 15... Bxb1 {[%clk 0:01:30]} 16. Qxb4 {[%clk 0:01:04.3]} 16...
Bd3 {[%clk 0:01:29.7]} 17. Re1 {[%clk 0:01:00.2]} 17... e6 {[%clk 0:01:29.7]}
18. b3 {[%clk 0:00:55.8]} 18... a5 {[%clk 0:01:28.6]} 19. Qf4 {[%clk 0:00:51.3]}
19... Qf6 {[%clk 0:01:28]} 20. Qe3 {[%clk 0:00:45.3]} 20... Rfd8 {[%clk
0:01:27.7]} 21. Bb2 {[%clk 0:00:44.4]} 21... Qf5 {[%clk 0:01:20.6]} 22. Na4
{[%clk 0:00:41.4]} 22... Bxb2 {[%clk 0:01:16.9]} 23. Nxb2 {[%clk 0:00:42.3]}
23... Ba6 {[%clk 0:01:14.7]} 24. Ne5 {[%clk 0:00:39.8]} 24... h5 {[%clk
0:01:04.3]} 25. Nbc4 {[%clk 0:00:39.3]} 25... Bxc4 {[%clk 0:01:00]} 26. Nxc4
{[%clk 0:00:39.1]} 26... Rd3 {[%clk 0:00:52.3]} 27. Qe2 {[%clk 0:00:34.3]} 27...
a4 {[%clk 0:00:48.3]} 28. bxa4 {[%clk 0:00:30.1]} 28... Rd4 {[%clk 0:00:34.1]}
29. a5 {[%clk 0:00:18.7]} 29... Rc8 {[%clk 0:00:30.3]} 30. Ne3 {[%clk
0:00:16.5]} 30... Qxa5 {[%clk 0:00:30]} 31. d3 {[%clk 0:00:15.2]} 31... Rcd8
{[%clk 0:00:29.2]} 32. Rd1 {[%clk 0:00:15.1]} 32... Qc3 {[%clk 0:00:29.1]} 33.
Rd2 {[%clk 0:00:14.2]} 33... Rxd3 {[%clk 0:00:29.1]} 34. Rxd3 {[%clk 0:00:14.5]}
34... Qxd3 {[%clk 0:00:29.7]} 35. Qf3 {[%clk 0:00:14.3]} 35... Qb1+ {[%clk
0:00:28.1]} 36. Kh2 {[%clk 0:00:14.3]} 36... Qxa2 {[%clk 0:00:28.7]} 37. Qf6
{[%clk 0:00:13.2]} 37... Qa8 {[%clk 0:00:27.1]} 38. h4 {[%clk 0:00:11.7]} 38...
Qb8+ {[%clk 0:00:27]} 39. g3 {[%clk 0:00:11.2]} 39... Qd6 {[%clk 0:00:26.9]} 40.
Ng2 {[%clk 0:00:10.9]} 40... Qd4 {[%clk 0:00:26.4]} 41. Qf3 {[%clk 0:00:10]}
41... Qd5 {[%clk 0:00:25.4]} 42. Qf6 {[%clk 0:00:09.2]} 42... Rc8 {[%clk
0:00:21.9]} 43. Nf4 {[%clk 0:00:08.9]} 43... Qf5 {[%clk 0:00:22.2]} 44. Qe7
{[%clk 0:00:06]} 44... e5 {[%clk 0:00:20.3]} 45. Nh3 {[%clk 0:00:04.3]} 45...
Rc2 {[%clk 0:00:19]} 46. Qd8+ {[%clk 0:00:04.4]} 46... Kg7 {[%clk 0:00:18.8]}
47. Qd1 {[%clk 0:00:04.5]} 47... Rxf2+ {[%clk 0:00:18.6]} 48. Nxf2 {[%clk
0:00:04.2]} 48... Qxf2+ {[%clk 0:00:19.5]} 49. Kh3 {[%clk 0:00:04.7]} 49... e4
{[%clk 0:00:20.1]} 50. Qa1+ {[%clk 0:00:04.2]} 50... Kh7 {[%clk 0:00:20.2]} 51.
g4 {[%clk 0:00:04.3]} 51... Qf3+ {[%clk 0:00:18.9]} 52. Kh2 {[%clk 0:00:04.2]}
52... hxg4 {[%clk 0:00:19.8]} 53. h5 {[%clk 0:00:03.6]} 53... g3+ {[%clk
0:00:20.1]} 54. Kg1 {[%clk 0:00:03.6]} 54... Qf2+ {[%clk 0:00:20.4]} 55. Kh1
{[%clk 0:00:02.9]} 55... Qh2# {[%clk 0:00:21.3]} 0-1